fUST/lending_fUST_20240721
["ID","MTS","AMOUNT","RATE_DAILY","PERIOD"]
[332774156,1721512254398,-1469.8,0.00014246,2]
[332774157,1721512254411,-1762.78,0.00014246,2]
[332774158,1721512254421,-500.0,0.00014246,2]
[332774159,1721512254433,-307.19556289,0.00014246,2]
[332774160,1721512254444,-337.62634337,0.00014246,2]
[332774161,1721512254453,-583.21,0.00014246,2]
[332774162,1721512254464,-1139.05,0.00014246,2]
[332774163,1721512254475,-500.0,0.00014246,2]
[332774164,1721512254485,-500.0,0.00014246,2]
[332774165,1721512254495,-1728.25,0.00014246,2]
[332774166,1721512254509,-1695.28,0.00014246,2]
[332774167,1721512254520,-1282.07,0.00014246,2]
[332774168,1721512254531,-1476.52,0.00014246,2]
[332774169,1721512254541,-415.26668233,0.00014246,2]
[332774170,1721512254553,-500.0,0.00014246,2]
[332774171,1721512254562,-820.39,0.00014246,2]
[332774172,1721512254572,-500.0,0.00014246,2]
[332774173,1721512254584,-500.0,0.00014246,2]
[332774174,1721512254595,-500.0,0.00014246,2]
[332774175,1721512254604,-3113.2,0.00014246,2]
[332774176,1721512254615,-500.0,0.00014246,2]
[332774177,1721512254625,-155.98610733,0.00014246,2]
[332774178,1721512254636,-500.0,0.00014246,2]
[332774179,1721512254646,-500.0,0.00014246,2]
[332774180,1721512254656,-500.0,0.00014246,2]
[332774181,1721512254666,-500.0,0.00014246,2]
[332774182,1721512254678,-500.0,0.00014246,2]
[332774183,1721512254689,-500.0,0.00014246,2]
[332774184,1721512254700,-500.0,0.00014246,2]
[332774185,1721512254711,-775.55,0.00014246,2]
[332774186,1721512254722,-684.78,0.00014246,2]
[332774187,1721512254734,-500.0,0.00014246,2]
[332774188,1721512254746,-857.85,0.00014246,2]
[332774189,1721512254756,-649.73,0.00014246,2]
[332774190,1721512254766,-500.0,0.00014246,2]
[332774191,1721512254778,-503.50562691,0.00014246,2]
[332774192,1721512254788,-500.0,0.00014246,2]
[332774193,1721512254799,-500.0,0.00014246,2]
[332774194,1721512254808,-717.1,0.00014246,2]
[332774195,1721512254818,-895.4,0.00014246,2]
[332774196,1721512254827,-500.0,0.00014246,2]
[332774197,1721512254837,-1277.83,0.00014246,2]
[332774198,1721512254851,-500.0,0.00014246,2]
[332774199,1721512254860,-960.36,0.00014246,2]
[332774200,1721512254870,-842.26,0.00014246,2]
[332774201,1721512254879,-605.13,0.00014246,2]
[332774202,1721512254889,-500.0,0.00014246,2]
[332774203,1721512254899,-500.0,0.00014246,2]
[332774204,1721512254909,-512.08117975,0.00014246,2]
[332774205,1721512254918,-500.0,0.00014246,2]
[332774206,1721512254929,-899.88,0.00014246,2]
[332774207,1721512254938,-1871.08,0.00014246,2]
[332774208,1721512254947,-1741.82,0.00014246,2]
[332774209,1721512254956,-500.0,0.00014246,2]
[332774210,1721512254966,-500.0,0.00014246,2]
[332774211,1721512254975,-500.0,0.00014246,2]
[332774212,1721512254984,-500.0,0.00014246,2]
[332774213,1721512254993,-500.0,0.00014246,2]
[332774214,1721512255002,-500.0,0.00014246,2]
[332774215,1721512255011,-1040.05,0.00014246,2]
[332774216,1721512255021,-500.0,0.00014246,2]
[332774217,1721512255030,-1196.4,0.00014246,2]
[332774218,1721512255039,-500.0,0.00014246,2]
[332774219,1721512255048,-1162.5,0.00014246,2]
[332774220,1721512255058,-616.77,0.00014246,2]
[332774221,1721512255067,-4656.48,0.00014246,2]
[332774222,1721512255077,-500.0,0.00014246,2]
[332774223,1721512255086,-632.86,0.00014246,2]
[332774224,1721512255095,-500.0,0.00014246,2]
[332774225,1721512255104,-500.0,0.00014246,2]
[332774226,1721512255113,-640.29,0.00014246,2]
[332774227,1721512255122,-2143.04,0.00014246,2]
[332774228,1721512255132,-3052.09,0.00014246,2]
[332774229,1721512255141,-657.62,0.00014246,2]
[332774230,1721512255150,-500.0,0.00014246,2]
[332774231,1721512255159,-500.0,0.00014246,2]
[332774232,1721512255169,-360.07193622,0.00014246,2]
[332774233,1721512255178,-548.79,0.00014246,2]
[332774234,1721512255187,-2777.37,0.00014246,2]
[332774235,1721512255198,-538.55,0.00014246,2]
[332774236,1721512255207,-511.02301535,0.00014246,2]
[332774237,1721512255216,-500.0,0.00014246,2]
[332774238,1721512255226,-500.0,0.00014246,2]
[332774239,1721512255235,-151.0,0.00014246,2]
[332774240,1721512255246,-5184.96,0.00014246,2]
[332774241,1721512255256,-3831.1,0.00014246,2]
[332774242,1721512255266,-151.0,0.00014246,2]
[332774243,1721512255275,-500.0,0.00014246,2]
[332774244,1721512255284,-500.0,0.00014246,2]
[332774245,1721512255294,-500.0,0.00014246,2]
[332774246,1721512255303,-500.0,0.00014246,2]
[332774247,1721512255312,-521.4783236,0.00014246,2]
[332774248,1721512255324,-500.0,0.00014246,2]
[332774249,1721512255338,-587.18,0.00014246,2]
[332774250,1721512255347,-2012.19,0.00014246,2]
[332774251,1721512255357,-2328.09,0.00014246,2]
[332774252,1721512255369,-500.0,0.00014246,2]
[332774253,1721512255379,-500.0,0.00014246,2]
[332774254,1721512255389,-500.0,0.00014246,2]
[332774255,1721512255399,-500.0,0.00014246,2]
[332774256,1721512255410,-500.0,0.00014246,2]
[332774257,1721512255420,-500.0,0.00014246,2]
[332774258,1721512255430,-500.0,0.00014246,2]
[332774259,1721512255440,-500.0,0.00014246,2]
[332774260,1721512255449,-500.0,0.00014246,2]
[332774261,1721512255458,-500.0,0.00014246,2]
[332774262,1721512255468,-500.0,0.00014246,2]
[332774263,1721512255477,-500.0,0.00014246,2]
[332774264,1721512255487,-970.93,0.00014246,2]
[332774265,1721512255498,-500.0,0.00014246,2]
[332774266,1721512255507,-1648.23,0.00014246,2]
[332774267,1721512255517,-500.0,0.00014246,2]
[332774268,1721512255527,-500.0,0.00014246,2]
[332774269,1721512255536,-471.64085717,0.00014246,2]
[332774270,1721512255546,-479.02754092,0.00014246,2]
[332774271,1721512255556,-500.0,0.00014246,2]
[332774272,1721512255567,-500.0,0.00014246,2]
[332774273,1721512255576,-1064.82,0.00014246,2]
[332774274,1721512255586,-500.0,0.00014246,2]
[332774275,1721512255596,-500.0,0.00014246,2]
[332774276,1721512255606,-500.0,0.00014246,2]
[332774277,1721512255616,-4825.35,0.00014246,2]
[332774278,1721512255625,-872.61,0.00014246,2]
[332774279,1721512255635,-1374.85,0.00014246,2]
[332774280,1721512255645,-500.0,0.00014246,2]
[332774281,1721512255655,-810.53,0.00014246,2]
[332774282,1721512255664,-540.77,0.00014246,2]
[332774283,1721512255674,-551.83,0.00014246,2]
[332774284,1721512255684,-554.43944664,0.00014246,2]
[332774285,1721512255693,-500.0,0.00014246,2]
[332774286,1721512255703,-508.80795726,0.00014246,2]
[332774287,1721512255712,-636.52390275,0.00014246,2]
[332774288,1721512255722,-500.0,0.00014246,2]
[332774289,1721512255732,-607.8,0.00014246,2]
[332774290,1721512255742,-500.0,0.00014246,2]
[332774291,1721512255751,-453.62559309,0.00014246,2]
[332774292,1721512255760,-500.0,0.00014246,2]
[332774293,1721512255770,-1046.18,0.00014246,2]
[332774294,1721512255780,-8367.53,0.00014246,2]
[332774295,1721512255789,-500.0,0.00014246,2]
[332774296,1721512255799,-353.74643827,0.00014246,2]
[332774297,1721512255809,-6662.52,0.00014246,2]
[332774298,1721512255818,-571.85,0.00014246,2]
[332774299,1721512255829,-500.0,0.00014246,2]
[332774300,1721512255838,-500.0,0.00014246,2]
[332774301,1721512255848,-500.0,0.00014246,2]
[332774302,1721512255858,-1959.59,0.00014246,2]
[332774303,1721512255867,-170.72705745,0.00014246,2]
[332774304,1721512255877,-1102.58,0.00014246,2]
[332774305,1721512255887,-2579.67,0.00014246,2]
[332774306,1721512255896,-500.0,0.00014246,2]
[332774307,1721512255906,-500.0,0.00014246,2]
[332774308,1721512255916,-500.0,0.00014246,2]
[332774309,1721512255926,-550.5,0.00014246,2]
[332774310,1721512255935,-574.66,0.00014246,2]
[332774311,1721512255945,-500.0,0.00014246,2]
[332774312,1721512255955,-2810.71,0.00014246,2]
[332774313,1721512255965,-500.0,0.00014246,2]
[332774314,1721512255975,-995.06,0.00014246,2]
[332774315,1721512255984,-500.0,0.00014246,2]
[332774316,1721512255994,-641.78,0.00014246,2]
[332774317,1721512256003,-173.75511392,0.00014246,2]
[332774318,1721512256013,-500.0,0.00014246,2]
[332774319,1721512256022,-16419.34,0.00014246,2]
[332774320,1721512256032,-500.0,0.00014246,2]
[332774321,1721512256041,-1196.93,0.00014246,2]
[332774322,1721512256050,-500.0,0.00014246,2]
[332774323,1721512256060,-500.0,0.00014246,2]
[332774324,1721512256070,-4244.03,0.00014246,2]
[332774325,1721512256080,-500.0,0.00014246,2]
[332774326,1721512256090,-3527.45,0.00014246,2]
[332774327,1721512256100,-500.0,0.00014246,2]
[332774328,1721512256110,-500.0,0.00014246,2]
[332774329,1721512256119,-1306.26,0.00014246,2]
[332774330,1721512256129,-1137.19,0.00014246,2]
[332774331,1721512256138,-983.71,0.00014246,2]
[332774332,1721512256148,-829.31,0.00014246,2]
[332774333,1721512256157,-500.0,0.00014246,2]
[332774334,1721512256166,-500.0,0.00014246,2]
[332774335,1721512256176,-1739.54,0.00014246,2]
[332774336,1721512256185,-500.0,0.00014246,2]
[332774337,1721512256196,-500.0,0.00014246,2]
[332774338,1721512256206,-500.0,0.00014246,2]
[332774339,1721512256216,-500.0,0.00014246,2]
[332774340,1721512256226,-500.0,0.00014246,2]
[332774341,1721512256235,-2679.42,0.00014246,2]
[332774342,1721512256245,-1256.37,0.00014246,2]
[332774343,1721512256255,-500.0,0.00014246,2]
[332774344,1721512256265,-1810.99,0.00014246,2]
[332774345,1721512256275,-500.0,0.00014246,2]
[332774346,1721512256285,-500.0,0.00014246,2]
[332774347,1721512256295,-716.17,0.00014246,2]
[332774348,1721512256308,-2402.51,0.00014246,2]
[332774349,1721512256321,-687.59,0.00014246,2]
[332774350,1721512256334,-1160.777121,0.00014246,2]
[332774351,1721512256344,-2521.54,0.00014246,2]
[332774352,1721512256355,-500.0,0.00014246,2]
[332774353,1721512256366,-500.0,0.00014246,2]
[332774354,1721512256377,-1160.777121,0.00014246,2]
[332774355,1721512256388,-500.0,0.00014246,2]
[332774356,1721512256399,-4600.07,0.00014246,2]
[332774357,1721512256412,-500.0,0.00014246,2]
[332774358,1721512256422,-255.62,0.00014246,2]
[332774359,1721512256432,-2896.89,0.00014246,2]
[332774360,1721512256443,-500.0,0.00014246,2]
[332774361,1721512256454,-1896.75,0.00014246,2]
[332774362,1721512256465,-500.0,0.00014246,2]
[332774363,1721512256478,-150.0,0.00014246,2]
[332774364,1721512256488,-500.0,0.00014246,2]
[332774365,1721512256498,-2904.58,0.00014246,2]
[332774366,1721512256509,-2906.83,0.00014246,2]
[332774367,1721512256520,-10248.99,0.00014246,2]
[332774368,1721512256530,-1227.14,0.00014246,2]
[332774369,1721512256540,-2229.03,0.00014246,2]
[332774370,1721512256551,-500.0,0.00014246,2]
[332774371,1721512256561,-1013.9,0.00014246,2]
[332774372,1721512256571,-500.0,0.00014246,2]
[332774373,1721512256580,-2472.96,0.00014246,2]
[332774374,1721512256590,-500.0,0.00014246,2]
[332774375,1721512256600,-500.0,0.00014246,2]
[332774376,1721512256610,-381.21198987,0.00014246,2]
[332774377,1721512256619,-8495.04,0.00014246,2]
[332774378,1721512256629,-500.0,0.00014246,2]
[332774379,1721512256639,-850.96,0.00014246,2]
[332774380,1721512256649,-500.0,0.00014246,2]
[332774381,1721512256660,-500.0,0.00014246,2]
[332774382,1721512256670,-12539.83,0.00014246,2]
[332774383,1721512256681,-182.45544952,0.00014246,2]
[332774384,1721512256691,-500.0,0.00014246,2]
[332774385,1721512256702,-500.0,0.00014246,2]
[332774386,1721512256712,-1471.9,0.00014246,2]
[332774387,1721512256722,-1061.7,0.00014246,2]
[332774388,1721512256733,-500.0,0.00014246,2]
[332774389,1721512256742,-1971.06,0.00014246,2]
[332774390,1721512256753,-209.14932,0.00014246,2]
[332774391,1721512256763,-500.0,0.00014246,2]
[332774392,1721512256773,-2106.78,0.00014246,2]
[332774393,1721512256783,-1040.79,0.00014246,2]
[332774394,1721512256792,-800.21,0.00014246,2]
[332774395,1721512256803,-209.14932,0.00014246,2]
[332774396,1721512256813,-694.07,0.00014246,2]
[332774397,1721512256824,-559.68,0.00014246,2]
[332774398,1721512256834,-1035.9,0.00014246,2]
[332774399,1721512256844,-500.0,0.00014246,2]
[332774400,1721512256854,-687.76,0.00014246,2]
[332774401,1721512256865,-500.0,0.00014246,2]
[332774402,1721512256877,-1787.86,0.00014246,2]
[332774403,1721512256889,-539.19,0.00014246,2]
[332774404,1721512256900,-1336.62,0.00014246,2]
[332774405,1721512256911,-1360.19,0.00014246,2]
[332774406,1721512256923,-500.0,0.00014246,2]
[332774407,1721512256933,-500.0,0.00014246,2]
[332774408,1721512256944,-500.0,0.00014246,2]
[332774409,1721512256954,-656.27,0.00014246,2]
[332774410,1721512256964,-500.0,0.00014246,2]
[332774411,1721512256974,-500.0,0.00014246,2]
[332774412,1721512256985,-256.28354357,0.00014246,2]
[332774413,1721512256996,-500.0,0.00014246,2]
[332774414,1721512257008,-151.12419647,0.00014246,2]
[332774415,1721512257019,-750.0,0.00014247,2]
[332774416,1721512257030,-200.0,0.00014269,2]
[332774417,1721512257040,-628.09916781,0.00014384,2]
[332774418,1721512257050,-1706.52594826,0.00014409,2]
[332774419,1721512257060,-153.0,0.00014489,2]
[332774420,1721512257071,-153.0,0.00014489,2]
[332774421,1721512257083,-153.0,0.00014518,2]
[332774422,1721512257094,-153.0,0.00014518,2]
[332774423,1721512257104,-153.0,0.00014518,2]
[332774424,1721512257115,-408.5491764,0.0001452,2]
[332774425,1721512257127,-500.0,0.0001452,2]
[332774426,1721512257140,-500.0,0.0001452,2]
[332774427,1721512257151,-500.0,0.0001452,2]
[332774428,1721512257161,-500.0,0.0001452,2]
[332774429,1721512257171,-437.80413858,0.0001452,2]
[332774430,1721512257182,-600.58,0.0001452,2]
[332774431,1721512257193,-500.0,0.0001452,2]
[332774432,1721512257205,-500.0,0.0001452,2]
[332774433,1721512257216,-1083.49,0.0001452,2]
[332774434,1721512257227,-906.4,0.0001452,2]
[332774435,1721512257238,-543.77,0.0001452,2]
[332774436,1721512257249,-545.46,0.0001452,2]
[332774437,1721512257260,-500.0,0.0001452,2]
[332774438,1721512257270,-500.0,0.0001452,2]
[332774439,1721512257280,-500.0,0.0001452,2]
[332774440,1721512257290,-500.0,0.0001452,2]
[332774441,1721512257301,-635.51,0.0001452,2]
[332774442,1721512257311,-500.0,0.0001452,2]
[332774443,1721512257322,-681.01,0.0001452,2]
[332774444,1721512257337,-500.0,0.0001452,2]
[332774445,1721512257347,-500.0,0.0001452,2]
[332774446,1721512257357,-500.0,0.0001452,2]
[332774447,1721512257367,-500.0,0.0001452,2]
[332774448,1721512257378,-500.0,0.0001452,2]
[332774449,1721512257389,-771.95,0.0001452,2]
[332774450,1721512257400,-839.66,0.0001452,2]
[332774451,1721512257410,-2172.77,0.0001452,2]
[332774452,1721512257420,-500.0,0.0001452,2]
[332774453,1721512257431,-500.0,0.0001452,2]
[332774454,1721512257442,-500.0,0.0001452,2]
[332774455,1721512257453,-500.0,0.0001452,2]
[332774456,1721512257465,-692.29,0.0001452,2]
[332774457,1721512257475,-500.0,0.0001452,2]
[332774458,1721512257484,-500.0,0.0001452,2]
[332774459,1721512257495,-500.0,0.0001452,2]
[332774460,1721512257506,-500.0,0.0001452,2]
[332774461,1721512257516,-500.0,0.0001452,2]
[332774462,1721512257526,-500.0,0.0001452,2]
[332774463,1721512257537,-500.0,0.0001452,2]
[332774464,1721512257549,-500.0,0.0001452,2]
[332774465,1721512257559,-500.0,0.0001452,2]
[332774466,1721512257572,-500.0,0.0001452,2]
[332774467,1721512257583,-500.0,0.0001452,2]
[332774468,1721512257594,-747.91,0.0001452,2]
[332774469,1721512257604,-500.0,0.0001452,2]
[332774470,1721512257615,-1395.64,0.0001452,2]
[332774471,1721512257624,-500.0,0.0001452,2]
[332774472,1721512257635,-508.54564734,0.0001452,2]
[332774473,1721512257645,-500.0,0.0001452,2]
[332774474,1721512257656,-2043.81,0.0001452,2]
[332774475,1721512257666,-2502.56,0.0001452,2]
[332774476,1721512257676,-666.37,0.0001452,2]
[332774477,1721512257686,-520.36,0.0001452,2]
[332774478,1721512257696,-237.48528334,0.0001452,2]
[332774479,1721512257706,-716.3,0.0001452,2]
[332774480,1721512257716,-500.0,0.0001452,2]
[332774481,1721512257726,-500.0,0.0001452,2]
[332774482,1721512257736,-803.79,0.0001452,2]
[332774483,1721512257747,-1030.75,0.0001452,2]
[332774484,1721512257757,-500.0,0.0001452,2]
[332774485,1721512257767,-549.67,0.0001452,2]
[332774486,1721512257778,-500.0,0.0001452,2]
[332774487,1721512257788,-657.3,0.0001452,2]
[332774488,1721512257798,-1833.88,0.0001452,2]
[332774489,1721512257807,-500.0,0.0001452,2]
[332774490,1721512257819,-500.0,0.0001452,2]
[332774491,1721512257831,-694.15,0.0001452,2]
[332774492,1721512257841,-995.11,0.0001452,2]
[332774493,1721512257854,-582.80298837,0.0001452,2]
[332774494,1721512257864,-500.0,0.0001452,2]
[332774495,1721512257874,-932.46,0.0001452,2]
[332774496,1721512257883,-500.0,0.0001452,2]
[332774497,1721512257893,-604.16,0.0001452,2]
[332774498,1721512257903,-151.0,0.0001452,2]
[332774499,1721512257913,-580.55,0.0001452,2]
[332774500,1721512257923,-540.92680872,0.0001452,2]
[332774501,1721512257933,-500.0,0.0001452,2]
[332774502,1721512257945,-500.0,0.0001452,2]
[332774503,1721512257956,-500.0,0.0001452,2]
[332774504,1721512257967,-3660.2,0.0001452,2]
[332774505,1721512257979,-500.0,0.0001452,2]
[332774506,1721512257989,-1301.1,0.0001452,2]
[332774507,1721512258000,-500.0,0.0001452,2]
[332774508,1721512258010,-500.0,0.0001452,2]
[332774509,1721512258021,-1157.49,0.0001452,2]
[332774510,1721512258031,-500.0,0.0001452,2]
[332774511,1721512258042,-500.0,0.0001452,2]
[332774512,1721512258051,-500.0,0.0001452,2]
[332774513,1721512258062,-736.76,0.0001452,2]
[332774514,1721512258073,-538.57,0.0001452,2]
[332774515,1721512258082,-500.0,0.0001452,2]
[332774516,1721512258092,-500.0,0.0001452,2]
[332774517,1721512258102,-1178.25,0.0001452,2]
[332774518,1721512258111,-500.0,0.0001452,2]
[332774519,1721512258123,-642.89,0.0001452,2]
[332774520,1721512258133,-597.26,0.0001452,2]
[332774521,1721512258143,-500.0,0.0001452,2]
[332774522,1721512258153,-500.0,0.0001452,2]
[332774523,1721512258163,-500.0,0.0001452,2]
[332774524,1721512258174,-500.0,0.0001452,2]
[332774525,1721512258184,-500.0,0.0001452,2]
[332774526,1721512258194,-500.0,0.0001452,2]
[332774527,1721512258203,-1577.45,0.0001452,2]
[332774528,1721512258214,-500.0,0.0001452,2]
[332774529,1721512258225,-678.16,0.0001452,2]
[332774530,1721512258235,-531.9,0.0001452,2]
[332774531,1721512258245,-500.0,0.0001452,2]
[332774532,1721512258255,-500.0,0.0001452,2]
[332774533,1721512258266,-518.33,0.0001452,2]
[332774534,1721512258275,-1511.54,0.0001452,2]
[332774535,1721512258286,-500.0,0.0001452,2]
[332774536,1721512258296,-800.31,0.0001452,2]
[332774537,1721512258306,-371.21872969,0.0001452,2]
[332774538,1721512258316,-500.0,0.0001452,2]
[332774539,1721512258333,-500.0,0.0001452,2]
[332774540,1721512258343,-500.0,0.0001452,2]
[332774541,1721512258354,-747.11,0.0001452,2]
[332774542,1721512258364,-518.08,0.0001452,2]
[332774543,1721512258375,-500.0,0.0001452,2]
[332774544,1721512258384,-500.0,0.0001452,2]
[332774545,1721512258393,-825.39,0.0001452,2]
[332774546,1721512258404,-1117.33,0.0001452,2]
[332774547,1721512258415,-2350.18,0.0001452,2]
[332774548,1721512258426,-500.0,0.0001452,2]
[332774549,1721512258436,-773.17,0.0001452,2]
[332774550,1721512258446,-1488.43,0.0001452,2]
[332774551,1721512258456,-500.0,0.0001452,2]
[332774552,1721512258466,-500.0,0.0001452,2]
[332774553,1721512258475,-500.0,0.0001452,2]
[332774554,1721512258484,-500.0,0.0001452,2]
[332774555,1721512258495,-1469.8,0.0001452,2]
[332774556,1721512258504,-1762.78,0.0001452,2]
[332774557,1721512258514,-500.0,0.0001452,2]
[332774558,1721512258525,-583.21,0.0001452,2]
[332774559,1721512258534,-1139.05,0.0001452,2]
[332774560,1721512258544,-500.0,0.0001452,2]
[332774561,1721512258554,-504.399664,0.0001452,2]
[332774562,1721512258565,-1728.25,0.0001452,2]
[332774563,1721512258576,-1695.28,0.0001452,2]
[332774564,1721512258587,-1282.07,0.0001452,2]
[332774565,1721512258597,-1476.52,0.0001452,2]
[332774566,1721512258608,-500.0,0.0001452,2]
[332774567,1721512258618,-820.39,0.0001452,2]
[332774568,1721512258629,-500.0,0.0001452,2]
[332774569,1721512258639,-500.0,0.0001452,2]
[332774570,1721512258650,-500.0,0.0001452,2]
[332774571,1721512258660,-3113.2,0.0001452,2]
[332774572,1721512258670,-500.0,0.0001452,2]
[332774573,1721512258680,-500.0,0.0001452,2]
[332774574,1721512258690,-500.0,0.0001452,2]
[332774575,1721512258700,-500.0,0.0001452,2]
[332774576,1721512258710,-500.0,0.0001452,2]
[332774577,1721512258720,-391.90915622,0.0001452,2]
[332774578,1721512258730,-500.0,0.0001452,2]
[332774579,1721512258740,-775.55,0.0001452,2]
[332774580,1721512258750,-684.78,0.0001452,2]
[332774581,1721512258759,-500.0,0.0001452,2]
[332774582,1721512258769,-857.85,0.0001452,2]
[332774583,1721512258779,-649.73,0.0001452,2]
[332774584,1721512258788,-335.08887657,0.0001452,2]
[332774585,1721512258798,-717.1,0.0001452,2]
[332774586,1721512258808,-895.4,0.0001452,2]
[332774587,1721512258819,-500.0,0.0001452,2]
[332774588,1721512258828,-1277.83,0.0001452,2]
[332774589,1721512258839,-500.0,0.0001452,2]
[332774590,1721512258848,-960.36,0.0001452,2]
[332774591,1721512258859,-842.26,0.0001452,2]
[332774592,1721512258868,-605.13,0.0001452,2]
[332774593,1721512258878,-500.0,0.0001452,2]
[332774594,1721512258887,-500.0,0.0001452,2]
[332774595,1721512259063,-899.88,0.0001452,2]
[332774596,1721512259073,-1871.08,0.0001452,2]
[332774597,1721512259083,-1741.82,0.0001452,2]
[332774598,1721512259093,-500.0,0.0001452,2]
[332774599,1721512259103,-500.0,0.0001452,2]
[332774600,1721512259112,-500.0,0.0001452,2]
[332774601,1721512259122,-600.22657191,0.0001452,2]
[332774602,1721512259132,-545.40045561,0.0001452,2]
[332774603,1721512259142,-500.0,0.0001452,2]
[332774604,1721512259152,-1040.05,0.0001452,2]
[332774605,1721512259162,-1196.4,0.0001452,2]
[332774606,1721512259172,-500.0,0.0001452,2]
[332774607,1721512259181,-1162.5,0.0001452,2]
[332774608,1721512259191,-616.77,0.0001452,2]
[332774609,1721512259200,-4656.48,0.0001452,2]
[332774610,1721512259209,-500.0,0.0001452,2]
[332774611,1721512259219,-632.86,0.0001452,2]
[332774612,1721512259228,-500.0,0.0001452,2]
[332774613,1721512259237,-500.0,0.0001452,2]
[332774614,1721512259247,-640.29,0.0001452,2]
[332774615,1721512259256,-2143.04,0.0001452,2]
[332774616,1721512259266,-3052.09,0.0001452,2]
[332774617,1721512259276,-657.62,0.0001452,2]
[332774618,1721512259285,-500.0,0.0001452,2]
[332774619,1721512259294,-500.0,0.0001452,2]
[332774620,1721512259304,-548.79,0.0001452,2]
[332774621,1721512259313,-2777.37,0.0001452,2]
[332774622,1721512259324,-538.55,0.0001452,2]
[332774623,1721512259337,-151.0,0.0001452,2]
[332774624,1721512259346,-5184.96,0.0001452,2]
[332774625,1721512259356,-3831.1,0.0001452,2]
[332774626,1721512259367,-151.0,0.0001452,2]
[332774627,1721512259376,-500.0,0.0001452,2]
[332774628,1721512259386,-500.0,0.0001452,2]
[332774629,1721512259395,-500.0,0.0001452,2]
[332774630,1721512259407,-500.0,0.0001452,2]
[332774631,1721512259417,-500.0,0.0001452,2]
[332774632,1721512259426,-587.18,0.0001452,2]
[332774633,1721512259436,-2012.19,0.0001452,2]
[332774634,1721512259445,-2328.09,0.0001452,2]
[332774635,1721512259455,-500.0,0.0001452,2]
[332774636,1721512259464,-500.0,0.0001452,2]
[332774637,1721512259474,-500.0,0.0001452,2]
[332774638,1721512259483,-500.0,0.0001452,2]
[332774639,1721512259493,-500.0,0.0001452,2]
[332774640,1721512259503,-500.0,0.0001452,2]
[332774641,1721512259513,-500.0,0.0001452,2]
[332774642,1721512259522,-500.0,0.0001452,2]
[332774643,1721512259532,-500.0,0.0001452,2]
[332774644,1721512259542,-500.0,0.0001452,2]
[332774645,1721512259551,-970.93,0.0001452,2]
[332774646,1721512259561,-500.0,0.0001452,2]
[332774647,1721512259571,-1648.23,0.0001452,2]
[332774648,1721512259581,-500.0,0.0001452,2]
[332774649,1721512259591,-500.0,0.0001452,2]
[332774650,1721512259600,-500.0,0.0001452,2]
[332774651,1721512259610,-1064.82,0.0001452,2]
[332774652,1721512259620,-500.0,0.0001452,2]
[332774653,1721512259630,-500.0,0.0001452,2]
[332774654,1721512259639,-500.0,0.0001452,2]
[332774655,1721512259650,-4825.35,0.0001452,2]